[Event "Titled Tuesday Blitz April 25 Early 2023"]
[White "Csonka, Balazs"]
[Black "Vestby-Ellingsen, Mads"]
[WhiteFideId "742910"]
[BlackFideId "1520857"]
[WhiteElo "2404"]
[BlackElo "2246"]
[Result "1-0"]
[Round "02"]
[TimeControl "180+2"]
[Date "2023.04.25"]
[WhiteClock "0:00:19"]
[BlackClock "0:00:01"]

1. e4 {[%clk 0:03:00]}  e6 {[%clk 0:02:59]} 2. d4 {[%clk 0:02:55]}  b6 {[%clk 0:02:59]} 3. Bd3 {[%clk 0:02:52]}  Bb7 {[%clk 0:02:59]} 4. Ne2 {[%clk 0:02:52]}  g6 {[%clk 0:02:55]} 5. O-O {[%clk 0:02:47]}  Bg7 {[%clk 0:02:55]} 6. c4 {[%clk 0:02:47]}  Ne7 {[%clk 0:02:53]} 7. Nbc3 {[%clk 0:02:47]}  O-O {[%clk 0:02:53]} 8. Be3 {[%clk 0:02:46]}  d5 {[%clk 0:02:52]} 9. cxd5 {[%clk 0:02:45]}  exd5 {[%clk 0:02:53]} 10. e5 {[%clk 0:02:45]}  c5 {[%clk 0:02:52]} 11. f4 {[%clk 0:02:40]}  Nbc6 {[%clk 0:02:49]} 12. Nb5 {[%clk 0:01:58]}  cxd4 {[%clk 0:02:45]} 13. Nexd4 {[%clk 0:01:53]}  Nxd4 {[%clk 0:02:45]} 14. Bxd4 {[%clk 0:01:41]}  Nc6 {[%clk 0:02:43]} 15. Bf2 {[%clk 0:01:41]}  Ba6 {[%clk 0:01:52]} 16. Nd6 {[%clk 0:01:35]}  Bxd3 {[%clk 0:01:47]} 17. Qxd3 {[%clk 0:01:36]}  Ne7 {[%clk 0:01:16]} 18. Bh4 {[%clk 0:01:24]}  f6 {[%clk 0:01:13]} 19. Rad1 {[%clk 0:01:18]}  Qd7 {[%clk 0:00:38]} 20. Qb3 {[%clk 0:01:11]}  g5 {[%clk 0:00:29]} 21. Rxd5 {[%clk 0:00:30]}  gxh4 {[%clk 0:00:18]} 22. Rd3+ {[%clk 0:00:20]}  Kh8 {[%clk 0:00:16]} 23. Nf7+ {[%clk 0:00:20]}  Rxf7 {[%clk 0:00:14]} 24. Rxd7 {[%clk 0:00:20]}  fxe5 {[%clk 0:00:01]} 25. Qxf7 {[%clk 0:00:19]} 1-0


[Site "https://www.chess.com"]

[Event "Titled Tuesday Blitz April 25 Early 2023"]
[White "Bryakin, Mikhail"]
[Black "Lehtosaari, Mauri"]
[WhiteFideId "4165314"]
[BlackFideId "501999"]
[WhiteElo "2447"]
[BlackElo "2523"]
[Result "1/2-1/2"]
[Round "02"]
[TimeControl "180+2"]
[Date "2023.04.25"]
[WhiteClock "0:02:58"]
[BlackClock "0:02:44"]

1. e4 {[%clk 0:03:00]}  d5 {[%clk 0:02:53]} 2. exd5 {[%clk 0:02:58]}  Qxd5 {[%clk 0:02:54]} 3. Qf3 {[%clk 0:02:58]}  Nf6 {[%clk 0:02:49]} 4. Nc3 {[%clk 0:02:57]}  Qxf3 {[%clk 0:02:49]} 5. Nxf3 {[%clk 0:02:58]}  c6 {[%clk 0:02:50]} 6. Bc4 {[%clk 0:02:58]}  Bf5 {[%clk 0:02:50]} 7. d3 {[%clk 0:02:59]}  e6 {[%clk 0:02:50]} 8. Nh4 {[%clk 0:02:59]}  Bg6 {[%clk 0:02:50]} 9. Nxg6 {[%clk 0:02:59]}  hxg6 {[%clk 0:02:50]} 10. h3 {[%clk 0:02:59]}  Nbd7 {[%clk 0:02:49]} 11. a3 {[%clk 0:02:59]}  Bd6 {[%clk 0:02:44]} 12. Bd2 {[%clk 0:02:58]} 1/2-1/2


[Site "https://www.chess.com"]

[Event "Titled Tuesday Blitz April 25 Early 2023"]
[White "Papasimakopoulos, Alexandros"]
[Black "Ljukin, Sergei"]
[WhiteFideId "4244125"]
[BlackFideId "14102200"]
[WhiteElo "2359"]
[BlackElo "2312"]
[Result "1-0"]
[Round "02"]
[TimeControl "180+2"]
[Date "2023.04.25"]
[WhiteClock "0:00:48"]
[BlackClock "0:00:03"]

1. d4 {[%clk 0:03:00]}  d5 {[%clk 0:02:59]} 2. c4 {[%clk 0:03:01]}  c6 {[%clk 0:02:59]} 3. cxd5 {[%clk 0:03:01]}  cxd5 {[%clk 0:02:55]} 4. Bf4 {[%clk 0:03:01]}  Nf6 {[%clk 0:02:55]} 5. Nc3 {[%clk 0:03:00]}  Nc6 {[%clk 0:02:55]} 6. e3 {[%clk 0:03:01]}  Bf5 {[%clk 0:02:55]} 7. Qb3 {[%clk 0:03:00]}  Na5 {[%clk 0:02:55]} 8. Qa4+ {[%clk 0:03:00]}  Bd7 {[%clk 0:02:55]} 9. Qc2 {[%clk 0:03:01]}  e6 {[%clk 0:02:50]} 10. Nf3 {[%clk 0:02:59]}  Ne4 {[%clk 0:02:36]} 11. Bd3 {[%clk 0:02:49]}  f5 {[%clk 0:02:30]} 12. O-O {[%clk 0:02:44]}  Rc8 {[%clk 0:02:28]} 13. Ne5 {[%clk 0:02:44]}  Bb4 {[%clk 0:02:23]} 14. Qe2 {[%clk 0:02:44]}  O-O {[%clk 0:02:12]} 15. Nxe4 {[%clk 0:02:26]}  fxe4 {[%clk 0:02:09]} 16. Bb5 {[%clk 0:02:26]}  Nc6 {[%clk 0:01:55]} 17. Nxd7 {[%clk 0:02:18]}  Qxd7 {[%clk 0:01:54]} 18. f3 {[%clk 0:02:15]}  a6 {[%clk 0:01:46]} 19. Ba4 {[%clk 0:02:10]}  b5 {[%clk 0:01:44]} 20. Bc2 {[%clk 0:02:08]}  Nxd4 {[%clk 0:01:43]} 21. exd4 {[%clk 0:02:02]}  Rxf4 {[%clk 0:01:43]} 22. fxe4 {[%clk 0:02:02]}  Qc7 {[%clk 0:01:08]} 23. Rxf4 {[%clk 0:01:57]}  Qxf4 {[%clk 0:01:07]} 24. Rf1 {[%clk 0:01:52]}  Qd2 {[%clk 0:01:00]} 25. Qg4 {[%clk 0:01:33]}  Qxc2 {[%clk 0:00:49]} 26. Qxe6+ {[%clk 0:01:32]}  Kh8 {[%clk 0:00:50]} 27. Qxd5 {[%clk 0:01:30]}  h6 {[%clk 0:00:43]} 28. h3 {[%clk 0:01:16]}  Bd2 {[%clk 0:00:26]} 29. Kh1 {[%clk 0:01:07]}  Qd3 {[%clk 0:00:17]} 30. Rf3 {[%clk 0:01:08]}  Qe2 {[%clk 0:00:14]} 31. Qf5 {[%clk 0:01:02]}  Re8 {[%clk 0:00:12]} 32. e5 {[%clk 0:01:02]}  Be3 {[%clk 0:00:12]} 33. d5 {[%clk 0:00:59]}  Qe1+ {[%clk 0:00:11]} 34. Rf1 {[%clk 0:00:59]}  Qg3 {[%clk 0:00:11]} 35. d6 {[%clk 0:00:52]}  Qxe5 {[%clk 0:00:07]} 36. d7 {[%clk 0:00:52]}  Qe7 {[%clk 0:00:02]} 37. dxe8=Q+ {[%clk 0:00:47]}  Qxe8 {[%clk 0:00:03]} 38. Qf8+ {[%clk 0:00:47]}  Qxf8 {[%clk 0:00:03]} 39. Rxf8+ {[%clk 0:00:48]} 1-0


[Site "https://www.chess.com"]

[Event "Titled Tuesday Blitz April 25 Early 2023"]
[White "Liyanage, Ranindu Dilshan"]
[Black "Romkachess"]
[WhiteFideId "9915834"]
[WhiteElo "2199"]
[BlackElo "2489"]
[Result "1-0"]
[Round "02"]
[TimeControl "180+2"]
[Date "2023.04.25"]
[WhiteClock "0:00:30"]
[BlackClock "0:00:07"]

1. e4 {[%clk 0:03:00]}  c5 {[%clk 0:02:59]} 2. Nc3 {[%clk 0:03:00]}  d6 {[%clk 0:02:54]} 3. f4 {[%clk 0:03:00]}  Nc6 {[%clk 0:02:53]} 4. Nf3 {[%clk 0:02:59]}  g6 {[%clk 0:02:52]} 5. Bb5 {[%clk 0:03:00]}  Bd7 {[%clk 0:02:51]} 6. Bc4 {[%clk 0:02:59]}  Bg7 {[%clk 0:02:51]} 7. d3 {[%clk 0:03:00]}  e6 {[%clk 0:02:51]} 8. f5 {[%clk 0:03:00]}  exf5 {[%clk 0:02:47]} 9. O-O {[%clk 0:02:59]}  Nf6 {[%clk 0:02:44]} 10. Qe1 {[%clk 0:02:56]}  O-O {[%clk 0:02:42]} 11. Qh4 {[%clk 0:02:47]}  Na5 {[%clk 0:02:06]} 12. exf5 {[%clk 0:02:27]}  Nxc4 {[%clk 0:02:05]} 13. dxc4 {[%clk 0:02:28]}  Bxf5 {[%clk 0:01:47]} 14. Bg5 {[%clk 0:02:26]}  h6 {[%clk 0:01:47]} 15. Bxh6 {[%clk 0:02:20]}  Bxh6 {[%clk 0:01:48]} 16. Qxh6 {[%clk 0:02:19]}  Ng4 {[%clk 0:01:49]} 17. Qf4 {[%clk 0:02:18]}  Re8 {[%clk 0:01:42]} 18. Rfe1 {[%clk 0:02:08]}  Qf6 {[%clk 0:00:44]} 19. h3 {[%clk 0:01:58]}  Ne5 {[%clk 0:00:41]} 20. Nxe5 {[%clk 0:01:43]}  dxe5 {[%clk 0:00:40]} 21. Qf3 {[%clk 0:01:41]}  Qg5 {[%clk 0:00:38]} 22. Nd5 {[%clk 0:01:21]}  Rad8 {[%clk 0:00:34]} 23. Re2 {[%clk 0:01:03]}  e4 {[%clk 0:00:31]} 24. Qc3 {[%clk 0:01:02]}  Re6 {[%clk 0:00:19]} 25. Kh1 {[%clk 0:00:51]}  b6 {[%clk 0:00:17]} 26. g4 {[%clk 0:00:47]}  Bxg4 {[%clk 0:00:10]} 27. hxg4 {[%clk 0:00:48]}  Qxg4 {[%clk 0:00:11]} 28. Rh2 {[%clk 0:00:31]}  Rxd5 {[%clk 0:00:07]} 29. cxd5 {[%clk 0:00:30]} 1-0


[Site "https://www.chess.com"]

[Event "Titled Tuesday Blitz April 25 Early 2023"]
[White "Yeritsyan, Hayk"]
[Black "Pakleza, Zbigniew"]
[WhiteFideId "13307320"]
[BlackFideId "1119290"]
[WhiteElo "2459"]
[BlackElo "2410"]
[Result "0-1"]
[Round "02"]
[TimeControl "180+2"]
[Date "2023.04.25"]
[WhiteClock "0:00:02"]
[BlackClock "0:00:07"]

1. Nf3 {[%clk 0:02:45]}  d5 {[%clk 0:02:59]} 2. b3 {[%clk 0:02:43]}  Nf6 {[%clk 0:02:59]} 3. Bb2 {[%clk 0:02:43]}  Bf5 {[%clk 0:02:59]} 4. e3 {[%clk 0:02:42]}  e6 {[%clk 0:03:00]} 5. c4 {[%clk 0:02:43]}  c6 {[%clk 0:03:00]} 6. Be2 {[%clk 0:02:43]}  Nbd7 {[%clk 0:03:00]} 7. O-O {[%clk 0:02:43]}  h6 {[%clk 0:03:01]} 8. d3 {[%clk 0:02:43]}  Bd6 {[%clk 0:03:01]} 9. Nbd2 {[%clk 0:02:40]}  Qe7 {[%clk 0:03:00]} 10. a3 {[%clk 0:02:37]}  O-O {[%clk 0:02:56]} 11. Qc2 {[%clk 0:02:37]}  e5 {[%clk 0:02:52]} 12. e4 {[%clk 0:02:32]}  Bh7 {[%clk 0:02:46]} 13. Rfe1 {[%clk 0:02:29]}  dxe4 {[%clk 0:02:37]} 14. Nxe4 {[%clk 0:02:26]}  Nxe4 {[%clk 0:02:34]} 15. dxe4 {[%clk 0:02:27]}  a5 {[%clk 0:02:32]} 16. Bf1 {[%clk 0:02:15]}  Rfd8 {[%clk 0:02:23]} 17. Qc3 {[%clk 0:02:05]}  g5 {[%clk 0:01:47]} 18. g3 {[%clk 0:01:57]}  f6 {[%clk 0:01:40]} 19. Bh3 {[%clk 0:01:48]}  Nc5 {[%clk 0:01:39]} 20. Bf5 {[%clk 0:01:48]}  Bc7 {[%clk 0:01:27]} 21. Rad1 {[%clk 0:01:21]}  Rxd1 {[%clk 0:01:12]} 22. Rxd1 {[%clk 0:01:22]}  Nxe4 {[%clk 0:01:06]} 23. Bxh7+ {[%clk 0:01:18]}  Qxh7 {[%clk 0:01:07]} 24. Qe3 {[%clk 0:01:18]}  Rd8 {[%clk 0:00:59]} 25. Rxd8+ {[%clk 0:01:14]}  Bxd8 {[%clk 0:01:00]} 26. b4 {[%clk 0:00:56]}  axb4 {[%clk 0:00:47]} 27. axb4 {[%clk 0:00:57]}  Nd6 {[%clk 0:00:46]} 28. Nxe5 {[%clk 0:00:56]}  Qb1+ {[%clk 0:00:42]} 29. Kg2 {[%clk 0:00:40]}  fxe5 {[%clk 0:00:33]} 30. Qd2 {[%clk 0:00:26]}  Nf7 {[%clk 0:00:20]} 31. f3 {[%clk 0:00:20]}  Bf6 {[%clk 0:00:18]} 32. g4 {[%clk 0:00:15]}  Kg7 {[%clk 0:00:16]} 33. Bc3 {[%clk 0:00:11]}  Qb3 {[%clk 0:00:12]} 34. Qd3 {[%clk 0:00:08]}  b5 {[%clk 0:00:10]} 35. cxb5 {[%clk 0:00:07]}  cxb5 {[%clk 0:00:11]} 36. Qe3 {[%clk 0:00:07]}  Qc4 {[%clk 0:00:08]} 37. Kg3 {[%clk 0:00:04]}  Qf4+ {[%clk 0:00:08]} 38. Kf2 {[%clk 0:00:03]}  Qxe3+ {[%clk 0:00:05]} 39. Kxe3 {[%clk 0:00:04]}  Nd6 {[%clk 0:00:06]} 40. Kd3 {[%clk 0:00:04]}  Kf7 {[%clk 0:00:06]} 41. Ke3 {[%clk 0:00:03]}  Ke6 {[%clk 0:00:07]} 42. Be1 {[%clk 0:00:03]}  Kd5 {[%clk 0:00:07]} 43. Kd3 {[%clk 0:00:04]}  e4+ {[%clk 0:00:07]} 44. fxe4+ {[%clk 0:00:05]}  Nxe4 {[%clk 0:00:08]} 45. Ke3 {[%clk 0:00:04]}  Bc3 {[%clk 0:00:06]} 46. Bxc3 {[%clk 0:00:02]}  Nxc3 {[%clk 0:00:07]} 47. Kd3 {[%clk 0:00:02]}  Na2 {[%clk 0:00:07]} 0-1


[Site "https://www.chess.com"]

[Event "Titled Tuesday Blitz April 25 Early 2023"]
[White "Samunenkov, Ihor"]
[Black "Melikhov, Evgeny V."]
[WhiteFideId "14187086"]
[BlackFideId "4122046"]
[WhiteElo "2457"]
[BlackElo "2158"]
[Result "1-0"]
[Round "02"]
[TimeControl "180+2"]
[Date "2023.04.25"]
[WhiteClock "0:00:05"]
[BlackClock "0:00:02"]

1. e4 {[%clk 0:02:59]}  e5 {[%clk 0:02:59]} 2. Nf3 {[%clk 0:02:58]}  Nc6 {[%clk 0:02:59]} 3. Bb5 {[%clk 0:02:58]}  a6 {[%clk 0:02:59]} 4. Ba4 {[%clk 0:02:59]}  Nf6 {[%clk 0:02:59]} 5. Nc3 {[%clk 0:02:59]}  b5 {[%clk 0:02:50]} 6. Bb3 {[%clk 0:02:59]}  Be7 {[%clk 0:02:50]} 7. O-O {[%clk 0:02:56]}  d6 {[%clk 0:02:48]} 8. h3 {[%clk 0:02:49]}  O-O {[%clk 0:02:47]} 9. a3 {[%clk 0:02:36]}  Be6 {[%clk 0:02:41]} 10. Bxe6 {[%clk 0:02:31]}  fxe6 {[%clk 0:02:41]} 11. d4 {[%clk 0:02:23]}  exd4 {[%clk 0:02:37]} 12. Nxd4 {[%clk 0:02:24]}  Nxd4 {[%clk 0:02:26]} 13. Qxd4 {[%clk 0:02:22]}  e5 {[%clk 0:02:12]} 14. Qd3 {[%clk 0:02:22]}  c6 {[%clk 0:02:10]} 15. Be3 {[%clk 0:02:13]}  Nh5 {[%clk 0:02:06]} 16. Ne2 {[%clk 0:02:01]}  d5 {[%clk 0:01:53]} 17. c3 {[%clk 0:01:57]}  Nf4 {[%clk 0:01:38]} 18. Bxf4 {[%clk 0:01:52]}  exf4 {[%clk 0:01:38]} 19. Nd4 {[%clk 0:01:39]}  Qd7 {[%clk 0:01:09]} 20. Rfe1 {[%clk 0:01:16]}  Bc5 {[%clk 0:01:03]} 21. Nf3 {[%clk 0:00:51]}  Rae8 {[%clk 0:00:41]} 22. exd5 {[%clk 0:00:50]}  Qxd5 {[%clk 0:00:32]} 23. Qxd5+ {[%clk 0:00:48]}  cxd5 {[%clk 0:00:32]} 24. Kf1 {[%clk 0:00:48]}  Rxe1+ {[%clk 0:00:25]} 25. Rxe1 {[%clk 0:00:48]}  Rd8 {[%clk 0:00:25]} 26. Re6 {[%clk 0:00:39]}  a5 {[%clk 0:00:17]} 27. Rc6 {[%clk 0:00:37]}  Bf8 {[%clk 0:00:13]} 28. b4 {[%clk 0:00:26]}  axb4 {[%clk 0:00:12]} 29. axb4 {[%clk 0:00:27]}  Ra8 {[%clk 0:00:12]} 30. Nd4 {[%clk 0:00:27]}  Ra2 {[%clk 0:00:11]} 31. Nxb5 {[%clk 0:00:27]}  f3 {[%clk 0:00:10]} 32. gxf3 {[%clk 0:00:27]}  Rc2 {[%clk 0:00:08]} 33. Nd4 {[%clk 0:00:25]}  Rb2 {[%clk 0:00:07]} 34. b5 {[%clk 0:00:19]}  Be7 {[%clk 0:00:04]} 35. b6 {[%clk 0:00:11]}  Bh4 {[%clk 0:00:04]} 36. Nf5 {[%clk 0:00:04]}  Bxf2 {[%clk 0:00:03]} 37. Nd6 {[%clk 0:00:05]}  Bxb6 {[%clk 0:00:02]} 38. Rc8+ {[%clk 0:00:05]} 1-0


[Site "https://www.chess.com"]

[Event "Titled Tuesday Blitz April 25 Early 2023"]
[White "Panesar Vedant"]
[Black "Gurevich, Dmitry"]
[WhiteFideId "35033018"]
[BlackFideId "2000407"]
[WhiteElo "2278"]
[BlackElo "2506"]
[Result "0-1"]
[Round "02"]
[TimeControl "180+2"]
[Date "2023.04.25"]
[WhiteClock "0:00:02"]
[BlackClock "0:00:20"]

1. e4 {[%clk 0:03:00]}  c5 {[%clk 0:02:59]} 2. Nf3 {[%clk 0:03:01]}  d6 {[%clk 0:02:59]} 3. d4 {[%clk 0:03:01]}  cxd4 {[%clk 0:03:00]} 4. Nxd4 {[%clk 0:03:02]}  Nf6 {[%clk 0:03:00]} 5. Nc3 {[%clk 0:03:03]}  Nc6 {[%clk 0:03:00]} 6. Bg5 {[%clk 0:03:02]}  e6 {[%clk 0:02:57]} 7. Qd3 {[%clk 0:03:03]}  Be7 {[%clk 0:02:56]} 8. O-O-O {[%clk 0:02:59]}  Nxd4 {[%clk 0:02:54]} 9. Qxd4 {[%clk 0:02:59]}  O-O {[%clk 0:02:55]} 10. f4 {[%clk 0:02:59]}  a6 {[%clk 0:02:54]} 11. Kb1 {[%clk 0:02:54]}  b5 {[%clk 0:02:52]} 12. e5 {[%clk 0:02:54]}  dxe5 {[%clk 0:02:50]} 13. Qxe5 {[%clk 0:02:54]}  Nd7 {[%clk 0:02:42]} 14. Qe4 {[%clk 0:02:47]}  Rb8 {[%clk 0:02:32]} 15. Bd3 {[%clk 0:02:46]}  g6 {[%clk 0:02:29]} 16. Bh6 {[%clk 0:02:41]}  Re8 {[%clk 0:02:17]} 17. h4 {[%clk 0:02:36]}  Bb7 {[%clk 0:02:07]} 18. Qe2 {[%clk 0:02:16]}  Bf6 {[%clk 0:01:53]} 19. Ne4 {[%clk 0:02:13]}  Bxe4 {[%clk 0:01:47]} 20. Bxe4 {[%clk 0:02:11]}  Qc7 {[%clk 0:01:45]} 21. h5 {[%clk 0:02:11]}  Nc5 {[%clk 0:01:42]} 22. hxg6 {[%clk 0:02:11]}  hxg6 {[%clk 0:01:37]} 23. Bf3 {[%clk 0:01:37]}  Na4 {[%clk 0:01:35]} 24. Rd3 {[%clk 0:01:09]}  Nxb2 {[%clk 0:01:32]} 25. Rb3 {[%clk 0:01:07]}  Na4 {[%clk 0:01:31]} 26. Qe1 {[%clk 0:00:29]}  Nc3+ {[%clk 0:01:25]} 27. Kc1 {[%clk 0:00:22]}  Nxa2+ {[%clk 0:01:24]} 28. Kb1 {[%clk 0:00:20]}  Nc3+ {[%clk 0:01:23]} 29. Kc1 {[%clk 0:00:20]}  Rbc8 {[%clk 0:01:22]} 30. Qf2 {[%clk 0:00:11]}  Red8 {[%clk 0:01:13]} 31. g3 {[%clk 0:00:08]}  a5 {[%clk 0:01:03]} 32. Qh2 {[%clk 0:00:07]}  a4 {[%clk 0:00:58]} 33. Bg5 {[%clk 0:00:06]}  Bg7 {[%clk 0:00:38]} 34. Bxd8 {[%clk 0:00:06]}  Rxd8 {[%clk 0:00:35]} 35. Rb2 {[%clk 0:00:03]}  a3 {[%clk 0:00:29]} 36. Rb3 {[%clk 0:00:03]}  a2 {[%clk 0:00:30]} 37. Kb2 {[%clk 0:00:03]}  Ne2+ {[%clk 0:00:24]} 38. Kxa2 {[%clk 0:00:02]}  Qxc2+ {[%clk 0:00:22]} 39. Ka3 {[%clk 0:00:02]}  Qc5+ {[%clk 0:00:20]} 0-1


[Site "https://www.chess.com"]

[Event "Titled Tuesday Blitz April 25 Early 2023"]
[White "KorolDimitriy75"]
[Black "Karthik Rajaa"]
[BlackFideId "25035215"]
[WhiteElo "2422"]
[BlackElo "2215"]
[Result "0-1"]
[Round "02"]
[TimeControl "180+2"]
[Date "2023.04.25"]
[WhiteClock "0:00:02"]
[BlackClock "0:00:16"]

1. d4 {[%clk 0:03:00]}  Nf6 {[%clk 0:02:59]} 2. c4 {[%clk 0:03:00]}  g6 {[%clk 0:02:59]} 3. Nc3 {[%clk 0:03:01]}  Bg7 {[%clk 0:02:59]} 4. e4 {[%clk 0:03:00]}  d6 {[%clk 0:02:59]} 5. Nf3 {[%clk 0:03:00]}  O-O {[%clk 0:02:59]} 6. Be2 {[%clk 0:03:00]}  Nbd7 {[%clk 0:03:00]} 7. O-O {[%clk 0:03:00]}  e5 {[%clk 0:03:01]} 8. Re1 {[%clk 0:03:00]}  Re8 {[%clk 0:02:59]} 9. Bf1 {[%clk 0:02:59]}  a6 {[%clk 0:02:59]} 10. Rb1 {[%clk 0:02:57]}  c6 {[%clk 0:02:28]} 11. b4 {[%clk 0:02:49]}  exd4 {[%clk 0:01:37]} 12. Nxd4 {[%clk 0:02:49]}  Ne5 {[%clk 0:01:32]} 13. f3 {[%clk 0:02:30]}  b5 {[%clk 0:01:22]} 14. cxb5 {[%clk 0:02:18]}  axb5 {[%clk 0:01:23]} 15. Be3 {[%clk 0:02:04]}  Bb7 {[%clk 0:01:17]} 16. Qb3 {[%clk 0:01:38]}  Nfd7 {[%clk 0:01:14]} 17. a4 {[%clk 0:01:06]}  bxa4 {[%clk 0:01:14]} 18. Nxa4 {[%clk 0:01:05]}  Rb8 {[%clk 0:01:13]} 19. Qc2 {[%clk 0:00:52]}  Nf6 {[%clk 0:00:34]} 20. Kh1 {[%clk 0:00:25]}  Nh5 {[%clk 0:00:34]} 21. Qd2 {[%clk 0:00:16]}  d5 {[%clk 0:00:28]} 22. exd5 {[%clk 0:00:13]}  cxd5 {[%clk 0:00:26]} 23. Nc5 {[%clk 0:00:13]}  Ba8 {[%clk 0:00:26]} 24. Red1 {[%clk 0:00:11]}  Nc4 {[%clk 0:00:24]} 25. Bxc4 {[%clk 0:00:11]}  dxc4 {[%clk 0:00:24]} 26. Bg1 {[%clk 0:00:10]}  Qh4 {[%clk 0:00:22]} 27. Qf2 {[%clk 0:00:10]}  Qf4 {[%clk 0:00:19]} 28. b5 {[%clk 0:00:05]}  Rbd8 {[%clk 0:00:19]} 29. Nc6 {[%clk 0:00:04]}  Rc8 {[%clk 0:00:17]} 30. Nd7 {[%clk 0:00:02]}  Bxc6 {[%clk 0:00:16]} 0-1


[Site "https://www.chess.com"]

[Event "Titled Tuesday Blitz April 25 Early 2023"]
[White "Spata, German"]
[Black "feuervogel1000000"]
[WhiteFideId "113026"]
[WhiteElo "2238"]
[BlackElo "2397"]
[Result "0-1"]
[Round "02"]
[TimeControl "180+2"]
[Date "2023.04.25"]
[WhiteClock "0:00:02"]
[BlackClock "0:00:47"]

1. Nf3 {[%clk 0:02:57]}  d5 {[%clk 0:02:59]} 2. e3 {[%clk 0:02:50]}  Bg4 {[%clk 0:02:55]} 3. c4 {[%clk 0:02:49]}  c6 {[%clk 0:02:55]} 4. cxd5 {[%clk 0:02:46]}  cxd5 {[%clk 0:02:54]} 5. Qb3 {[%clk 0:02:47]}  Bc8 {[%clk 0:02:25]} 6. Nc3 {[%clk 0:02:43]}  Nf6 {[%clk 0:02:24]} 7. Bb5+ {[%clk 0:02:38]}  Nc6 {[%clk 0:02:24]} 8. d4 {[%clk 0:02:37]}  a6 {[%clk 0:02:22]} 9. Bxc6+ {[%clk 0:02:30]}  bxc6 {[%clk 0:02:23]} 10. Bd2 {[%clk 0:02:29]}  e6 {[%clk 0:02:20]} 11. Rc1 {[%clk 0:02:27]}  Bd7 {[%clk 0:02:04]} 12. Ne5 {[%clk 0:02:23]}  c5 {[%clk 0:01:58]} 13. dxc5 {[%clk 0:02:17]}  Bxc5 {[%clk 0:01:58]} 14. Nxd5 {[%clk 0:02:00]}  Nxd5 {[%clk 0:01:53]} 15. Rxc5 {[%clk 0:02:00]}  Bb5 {[%clk 0:01:53]} 16. a4 {[%clk 0:01:46]}  Qd6 {[%clk 0:01:42]} 17. Rc1 {[%clk 0:01:15]}  Qxe5 {[%clk 0:01:31]} 18. axb5 {[%clk 0:01:15]}  O-O {[%clk 0:01:32]} 19. O-O {[%clk 0:00:49]}  axb5 {[%clk 0:01:31]} 20. Bc3 {[%clk 0:00:43]}  Nxc3 {[%clk 0:01:27]} 21. Rxc3 {[%clk 0:00:44]}  Rac8 {[%clk 0:01:25]} 22. Rfc1 {[%clk 0:00:42]}  Rxc3 {[%clk 0:01:24]} 23. Qxc3 {[%clk 0:00:37]}  Qd5 {[%clk 0:01:15]} 24. h3 {[%clk 0:00:34]}  h6 {[%clk 0:01:13]} 25. Qc5 {[%clk 0:00:31]}  Rd8 {[%clk 0:01:13]} 26. Qc2 {[%clk 0:00:27]}  g6 {[%clk 0:01:09]} 27. g3 {[%clk 0:00:26]}  Kg7 {[%clk 0:01:07]} 28. h4 {[%clk 0:00:27]}  h5 {[%clk 0:01:07]} 29. Qc3+ {[%clk 0:00:27]}  e5 {[%clk 0:01:07]} 30. Qb4 {[%clk 0:00:27]}  Qd2 {[%clk 0:01:03]} 31. Qxd2 {[%clk 0:00:23]}  Rxd2 {[%clk 0:01:02]} 32. Rc5 {[%clk 0:00:22]}  Rxb2 {[%clk 0:01:02]} 33. Rxe5 {[%clk 0:00:22]}  Kf6 {[%clk 0:01:02]} 34. Rc5 {[%clk 0:00:21]}  b4 {[%clk 0:01:02]} 35. Kg2 {[%clk 0:00:22]}  b3 {[%clk 0:01:01]} 36. Kf3 {[%clk 0:00:22]}  Ke6 {[%clk 0:01:00]} 37. Rc7 {[%clk 0:00:20]}  Rc2 {[%clk 0:00:55]} 38. Rb7 {[%clk 0:00:20]}  b2 {[%clk 0:00:54]} 39. e4 {[%clk 0:00:19]}  Kd6 {[%clk 0:00:50]} 40. Ke3 {[%clk 0:00:19]}  Kc6 {[%clk 0:00:50]} 41. Rb8 {[%clk 0:00:17]}  Kc5 {[%clk 0:00:49]} 42. f4 {[%clk 0:00:17]}  Kc4 {[%clk 0:00:48]} 43. f5 {[%clk 0:00:08]}  Rc3+ {[%clk 0:00:48]} 44. Kd2 {[%clk 0:00:05]}  Rb3 {[%clk 0:00:47]} 45. Rc8+ {[%clk 0:00:04]}  Kd4 {[%clk 0:00:47]} 46. Rd8+ {[%clk 0:00:02]}  Kxe4 {[%clk 0:00:47]} 0-1


[Site "https://www.chess.com"]

[Event "Titled Tuesday Blitz April 25 Early 2023"]
[White "Javakhadze, Zurab"]
[Black "Gutkin, Ilya"]
[WhiteFideId "13603647"]
[BlackFideId "16203470"]
[WhiteElo "2381"]
[BlackElo "2265"]
[Result "1-0"]
[Round "02"]
[TimeControl "180+2"]
[Date "2023.04.25"]
[WhiteClock "0:00:05"]
[BlackClock "0:00:02"]

1. Nf3 {[%clk 0:03:00]}  c5 {[%clk 0:02:59]} 2. g3 {[%clk 0:02:53]}  g6 {[%clk 0:02:59]} 3. Bg2 {[%clk 0:02:53]}  Bg7 {[%clk 0:03:00]} 4. O-O {[%clk 0:02:54]}  Nc6 {[%clk 0:03:00]} 5. e4 {[%clk 0:02:52]}  d6 {[%clk 0:02:59]} 6. Re1 {[%clk 0:02:48]}  e5 {[%clk 0:02:57]} 7. d3 {[%clk 0:02:45]}  Nge7 {[%clk 0:02:56]} 8. Nc3 {[%clk 0:02:44]}  O-O {[%clk 0:02:56]} 9. Nd2 {[%clk 0:02:40]}  Be6 {[%clk 0:02:52]} 10. Nc4 {[%clk 0:02:37]}  Rb8 {[%clk 0:02:46]} 11. Ne3 {[%clk 0:02:31]}  f5 {[%clk 0:02:38]} 12. Ned5 {[%clk 0:02:29]}  h6 {[%clk 0:02:24]} 13. f4 {[%clk 0:02:20]}  Kh7 {[%clk 0:02:22]} 14. Be3 {[%clk 0:02:14]}  Qd7 {[%clk 0:02:21]} 15. fxe5 {[%clk 0:02:11]}  Nxe5 {[%clk 0:02:19]} 16. exf5 {[%clk 0:01:54]}  Nxf5 {[%clk 0:02:13]} 17. Bf4 {[%clk 0:01:40]}  Nd4 {[%clk 0:02:00]} 18. Ne3 {[%clk 0:01:22]}  g5 {[%clk 0:01:32]} 19. Bxe5 {[%clk 0:01:11]}  Bxe5 {[%clk 0:01:33]} 20. Be4+ {[%clk 0:01:11]}  Kh8 {[%clk 0:01:33]} 21. Ncd5 {[%clk 0:01:00]}  Qg7 {[%clk 0:01:00]} 22. c3 {[%clk 0:00:55]}  Nc6 {[%clk 0:00:53]} 23. Qh5 {[%clk 0:00:49]}  Rf7 {[%clk 0:00:43]} 24. Rf1 {[%clk 0:00:30]}  Rbf8 {[%clk 0:00:43]} 25. Ng4 {[%clk 0:00:20]}  Rxf1+ {[%clk 0:00:39]} 26. Rxf1 {[%clk 0:00:21]}  Rxf1+ {[%clk 0:00:37]} 27. Kxf1 {[%clk 0:00:21]}  Bxg4 {[%clk 0:00:23]} 28. Qxg4 {[%clk 0:00:22]}  Qf7+ {[%clk 0:00:21]} 29. Ke2 {[%clk 0:00:20]}  Kg7 {[%clk 0:00:19]} 30. Qc8 {[%clk 0:00:18]}  h5 {[%clk 0:00:12]} 31. Ne3 {[%clk 0:00:16]}  Ne7 {[%clk 0:00:08]} 32. Qxb7 {[%clk 0:00:16]}  d5 {[%clk 0:00:02]} 33. Bxd5 {[%clk 0:00:12]}  Nxd5 {[%clk 0:00:03]} 34. Qxf7+ {[%clk 0:00:12]}  Kxf7 {[%clk 0:00:03]} 35. Nxd5 {[%clk 0:00:13]}  Ke6 {[%clk 0:00:03]} 36. Ne3 {[%clk 0:00:12]}  Bf6 {[%clk 0:00:01]} 37. Kf3 {[%clk 0:00:12]}  Be5 {[%clk 0:00:02]} 38. Ke4 {[%clk 0:00:11]}  Bc7 {[%clk 0:00:02]} 39. Nf5 {[%clk 0:00:09]}  g4 {[%clk 0:00:02]} 40. d4 {[%clk 0:00:07]}  cxd4 {[%clk 0:00:01]} 41. cxd4 {[%clk 0:00:08]}  Kf6 {[%clk 0:00:02]} 42. d5 {[%clk 0:00:07]}  Be5 {[%clk 0:00:02]} 43. b4 {[%clk 0:00:08]}  Bc3 {[%clk 0:00:02]} 44. b5 {[%clk 0:00:08]}  Ba5 {[%clk 0:00:01]} 45. a4 {[%clk 0:00:07]}  Bc7 {[%clk 0:00:01]} 46. d6 {[%clk 0:00:04]}  Bb6 {[%clk 0:00:02]} 47. Nd4 {[%clk 0:00:05]} 1-0


[Site "https://www.chess.com"]